Workbook

Sheet Лист1
A1: Школа | C1: МБОУ "СОШ № 9" НМР РТ | F1: Согласование: | G1: должность | H1: Директор
A2: Типовое примерное меню приготавливаемых блюд | G2: фамилия | H2: А.И.Мухаметзянова
A3: Возрастная категория | E3: 7-11 лет | G3: дата | H3: 7 | I3: 11 | J3: 2025
H4: день | I4: месяц | J4: год
A5: Неделя | B5: День недели | C5: Прием пищи | D5: Раздел меню | E5: Блюда | F5: Вес блюда, г | G5: Белки | H5: Жиры | I5: Углеводы | J5: Калорийность | K5: № рецептуры | L5: Цена
C6: Завтрак | D6: сладкое | E6: Булочка сдобная | F6: 50 | G6: 7.05 | H6: 9.3 | I6: 16.80 | J6: 209.00 | L6: 46.12
D7: гор.блюдо | E7: Каша геркулесовая молочная | F7: 200 | G7: 7.49 | H7: 8.46 | I7: 31.91 | J7: 216.30
D8: гор.напиток | E8: Чай с молоком и сахаром | F8: 200 | G8: 1.52 | H8: 1.35 | I8: 8.92 | J8: 53.07
D9: хлеб бел. | E9: Батон нарезной | F9: 50 | G9: 3.75 | H9: 1.45 | I9: 25.70 | J9: 131.00
D12: итого | F12: =F6+F7+F8+F9 -> 500 | G12: =SUM(G6:G11) -> 19.81 | H12: =SUM(H6:H11) -> 20.56 | I12: =SUM(I6:I11) -> 83.33 | J12: =SUM(J6:J11) -> 609.37 | L12: =L6 -> 46.12
A13: =A6 -> 0 | C13: Обед | D13: 1 блюдо | E13: Суп гороховый с гренками | F13: 205 | G13: 6.24 | H13: 7.96 | I13: 23.41 | J13: 160.82 | L13: 89.90
D14: 2 блюдо | E14: Жаркое из птицы (куриных грудок) | F14: 200 | G14: 17.01 | H14: 18.47 | I14: 52.76 | J14: 473.54
D15: доп.гарнир | E15: Капуста квашеная | F15: 35 | G15: 0.59 | H15: 1.75 | I15: 2.94 | J15: 29.99
D16: напиток | E16: Напиток из яблок и изюма | F16: 200 | G16: 0.2 | H16: 0.1 | I16: 19.82 | J16: 68.12
D17: хлеб черн. | E17: Хлеб ржаной | F17: 60 | G17: 3.96 | H17: 0.72 | I17: 23.76 | J17: 118.8
D21: итого | F21: =SUM(F13:F20) -> 700 | G21: =SUM(G13:G20) -> 28.00 | H21: =SUM(H13:H20) -> 29 | I21: =SUM(I13:I20) -> 122.69 | J21: =SUM(J13:J20) -> 851.27 | L21: =SUM(L13:L20) -> 89.90
A22: =A6 -> 0 | B22: =B6 -> 0 | C22: Итого за день: | F22: =F12+F21 -> 1200 | G22: =G12+G21 -> 47.81 | H22: =H12+H21 -> 49.56 | I22: =I12+I21 -> 206.02 | J22: =J12+J21 -> 1460.64 | L22: =L12+L21 -> 136.02
